bitfinex-derivatives/quotes_SOLF0:USTF0_20250329
["timestamp","ask_amount","ask_price","bid_price","bid_amount"]
[1743213028998,0.05246661,129.24,129.21,7.7428]
[1743213029207,0.05246661,129.24,129.2,35.97282652]
[1743213029406,0.05246661,129.24,129.22,7.7419]
[1743213029607,0.05246661,129.24,129.23,27.36]
[1743213030806,0.05246661,129.24,129.23,35.1018]
[1743213031208,0.05246661,129.24,129.23,27.36]
[1743213031509,8.68529313,129.24,129.23,27.36]
[1743213033210,16.42649313,129.24,129.23,27.36]
[1743213035506,7.7425,129.22,129.19,271.53662652]
[1743213035705,7.7425,129.22,129.2,27.36]
[1743213036113,7.7425,129.22,129.19,255.16]
[1743213036309,7.7425,129.22,129.21,27.36]
[1743213038207,16.37492652,129.23,129.21,27.36]
[1743213038911,7.7424,129.22,129.21,27.36]
[1743213039622,16.37492652,129.23,129.21,27.36]
[1743213040215,7.7424,129.22,129.21,27.36]
[1743213043114,7.7424,129.22,129.19,262.9042]
[1743213043312,7.7424,129.22,129.2,27.36]
[1743213043728,8.68529313,129.24,129.2,35.99282652]
[1743213044025,0.05246661,129.24,129.2,35.99282652]
[1743213044423,0.05246661,129.24,129.22,7.7421]
[1743213044623,0.05246661,129.24,129.23,27.36]
[1743213054827,7.79366661,129.24,129.23,27.36]
[1743213055137,0.05246661,129.24,129.23,27.36]
[1743213055826,0.05246661,129.24,129.23,35.1018]
[1743213056227,0.05246661,129.24,129.23,43.73462652]
[1743213056931,0.05246661,129.24,129.23,35.1018]
[1743213057128,0.05246661,129.24,129.23,27.36]
[1743213057737,0.05246661,129.24,129.23,35.1018]
[1743213058734,0.05246661,129.24,129.23,27.36]
[1743213059335,0.05246661,129.24,129.23,35.1018]
[1743213059733,0.05246661,129.24,129.23,43.73462652]
[1743213063640,0.05246661,129.24,129.23,27.36]
[1743213065149,0.05246661,129.24,129.23,35.1018]
[1743213068042,0.05246661,129.24,129.23,43.73462652]
[1743213070344,68.92876239,129.3,129.27,7.7394]
[1743213070535,68.92876239,129.3,129.27,35.0794]
[1743213071547,68.98623478,129.3,129.27,35.1347382]
[1743213071847,68.98623478,129.3,129.27,27.3953382]
[1743213072742,7.7382,129.29,129.27,27.3953382]
[1743213073248,8.63282652,129.29,129.27,27.3953382]
[1743213073446,7.7388,129.28,129.27,27.3953382]
[1743213073641,7.7388,129.28,129.27,0.0553382]
[1743213092464,0.05747239,129.3,129.27,27.3953382]
[1743213093072,7.79557239,129.3,129.27,27.3953382]
[1743213093773,7.7383,129.29,129.27,27.3953382]
[1743213100274,7.7388,129.28,129.27,27.3953382]
[1743213100476,8.63282652,129.29,129.26,27.34]
[1743213100669,8.63282652,129.28,129.26,27.34]
[1743213101779,7.7394,129.27,129.26,27.34]
[1743213103073,7.7401,129.26,129.25,27.34]
[1743213110283,8.63282652,129.26,129.21,282.58]
[1743213110469,8.63282652,129.24,129.21,282.58]
[1743213110675,8.63282652,129.25,129.21,282.58]
[1743213110878,7.7902189,129.24,129.21,282.58]
[1743213111183,0.0486189,129.24,129.21,282.58]
[1743213113381,7.7424,129.22,129.21,282.58]
[1743213116686,7.7424,129.22,129.21,255.24]
[1743213116978,7.7424,129.22,129.21,282.58]
[1743213117389,7.7424,129.22,129.21,27.34]
[1743213118184,7.7436,129.2,129.18,8.63282652]
[1743213118381,7.7436,129.2,129.19,27.34]
[1743213118579,7.80155445,129.2,129.19,27.34]
[1743213119180,7.80155445,129.2,129.17,9.8202]
[1743213119181,7.7442,129.19,129.17,27.34]
[1743213120387,8.69078097,129.2,129.17,27.34]
[1743213121287,16.43448097,129.2,129.17,27.34]
[1743213121888,0.05795445,129.2,129.17,43.71792652]
[1743213122289,0.05795445,129.2,129.18,7.7447]
[1743213122790,0.05795445,129.2,129.17,43.71792652]
[1743213122990,8.69078097,129.2,129.17,27.34]
[1743213123286,0.05795445,129.2,129.14,8.63282652]
[1743213123485,0.05795445,129.2,129.16,8.63282652]
[1743213123681,0.05795445,129.2,129.18,8.63282652]
[1743213123887,8.63282652,129.25,129.19,35.97282652]
[1743213124081,8.63282652,129.25,129.2,8.63282652]
[1743213124483,7.7415,129.24,129.21,7.743]
[1743213124694,8.63282652,129.23,129.22,27.34]
[1743213125691,16.37462652,129.23,129.22,27.34]
[1743213128888,7.79626338,129.24,129.22,27.34]
[1743213130094,0.05506338,129.24,129.22,35.0824]
[1743213130690,7.79626338,129.24,129.22,27.34]
[1743213131393,7.7418,129.23,129.22,27.34]
[1743213131593,7.7418,129.23,129.21,0.05468612]
[1743213131786,7.7418,129.23,129.21,27.39468612]
[1743213132195,7.7424,129.22,129.21,27.39468612]
[1743213132393,8.6878899,129.24,129.21,27.39468612]
[1743213132997,8.6878899,129.24,129.21,0.05468612]
[1743213133291,8.6878899,129.24,129.21,27.39468612]
[1743213133890,0.05506338,129.24,129.21,27.39468612]
[1743213135896,7.79656338,129.24,129.21,35.13738612]
[1743213137788,7.79656338,129.24,129.21,27.39468612]
[1743213140502,7.7419,129.23,129.21,27.39468612]
[1743213140989,0.05506338,129.24,129.21,27.39468612]
[1743213141599,0.05506338,129.24,129.22,8.63282652]
[1743213143699,7.7418,129.23,129.22,8.63282652]
[1743213144208,0.05506338,129.24,129.22,8.63282652]
[1743213144392,7.79656338,129.24,129.22,8.63282652]
[1743213146405,0.05506338,129.24,129.22,16.37482652]
[1743213147504,0.05506338,129.24,129.23,7.7418]
[1743213149404,0.05506338,129.24,129.22,16.37502652]
[1743213154607,0.05506338,129.24,129.23,7.7418]
[1743213154806,406.37684345,129.3,129.23,16.37462652]
[1743213154807,8.63282652,129.29,129.23,16.37462652]
[1743213155007,415.00966997,129.3,129.24,35.97282652]
[1743213155196,7.7397,129.27,129.25,8.63282652]
[1743213155397,42.37684345,129.3,129.26,16.37282652]
[1743213155603,42.37684345,129.3,129.27,35.97282652]
[1743213155798,51.00966997,129.3,129.27,27.34]
[1743213155998,51.06060886,129.3,129.27,27.38869329]
[1743213156508,7.7388,129.28,129.27,27.38869329]
[1743213157508,7.7388,129.28,129.27,0.04869329]
[1743213157704,7.7388,129.28,129.27,27.38869329]
[1743213157898,7.7385,129.29,129.27,27.38869329]
[1743213159708,7.7388,129.28,129.27,27.38869329]
[1743213163515,7.7388,129.28,129.27,0.04869329]
[1743213163719,7.7388,129.28,129.27,27.38869329]
[1743213167609,7.7388,129.28,129.27,0.04869329]
[1743213167811,8.63282652,129.28,129.24,27.34]
[1743213168114,8.63282652,129.26,129.24,27.34]
[1743213168304,7.7406,129.25,129.24,27.34]
[1743213171423,7.7978108,129.26,129.24,27.34]
[1743213171825,0.0576108,129.26,129.24,43.71402652]
[1743213172031,0.0576108,129.26,129.25,8.63282652]
[1743213172530,18.39930814,129.3,129.27,7.7392]
[1743213172831,18.39930814,129.3,129.28,27.34]
[1743213173626,18.45115777,129.3,129.28,27.39051316]
[1743213174030,7.78974963,129.3,129.28,27.39051316]
[1743213175427,0.05184963,129.3,129.28,27.39051316]
[1743213175637,0.05184963,129.3,129.28,35.12931316]
[1743213176025,0.05184963,129.3,129.28,27.39051316]
[1743213176733,7.78964963,129.3,129.28,27.39051316]
[1743213177835,7.7382,129.29,129.28,27.39051316]
[1743213180334,7.78974963,129.3,129.28,27.39051316]
[1743213180533,0.05184963,129.3,129.28,27.39051316]
[1743213181730,0.05184963,129.3,129.28,36.02333968]
[1743213182534,0.05184963,129.3,129.29,7.7382]
[1743213183035,0.05184963,129.3,129.28,43.76193968]
[1743213183234,0.05184963,129.3,129.29,8.63282652]
[1743213183930,7.78944963,129.3,129.28,36.02333968]
[1743213184133,7.78944963,129.3,129.28,27.39051316]
[1743213185640,0.05184963,129.3,129.28,36.02333968]
[1743213186137,0.05184963,129.3,129.28,43.76163968]
[1743213186540,0.05184963,129.3,129.28,36.02333968]
[1743213187434,0.05184963,129.3,129.29,7.7382]
[1743213187841,0.05184963,129.3,129.28,43.76183968]
[1743213188137,0.05184963,129.3,129.29,8.63282652]
[1743213189040,0.05184963,129.3,129.29,16.37102652]
[1743213190747,0.05184963,129.3,129.29,8.63282652]
[1743213191339,0.05184963,129.3,129.29,16.37102652]
[1743213192044,0.05184963,129.3,129.29,8.63282652]
[1743213197853,0.05184963,129.3,129.29,16.37102652]
[1743213201958,0.05184963,129.3,129.29,35.95282652]
[1743213202859,0.05184963,129.3,129.29,43.69102652]
[1743213208759,7.7347,129.35,129.32,7.7362]
[1743213208954,7.7347,129.35,129.33,27.32]
[1743213209763,16.36712652,129.36,129.33,27.32]
[1743213209960,0.05375463,129.35,129.33,27.37722819]
[1743213212054,0.05375463,129.35,129.33,36.01005471]
[1743213213658,7.78855463,129.35,129.33,36.01005471]
[1743213214867,0.05375463,129.35,129.33,27.37722819]
[1743213215364,7.78845463,129.35,129.33,27.37722819]
[1743213215666,0.05375463,129.35,129.33,27.37722819]
[1743213216768,7.7352,129.34,129.33,27.37722819]
[1743213217867,7.7352,129.34,129.33,0.05722819]
[1743213218063,7.7352,129.34,129.33,27.35722819]
[1743213218766,7.7352,129.34,129.3,8.63282652]
[1743213218767,7.7376,129.3,129.29,255.14]
[1743213219068,7.7376,129.3,129.29,282.44]
[1743213220071,7.7382,129.29,129.28,0.05016257]
[1743213220267,8.63282652,129.29,129.26,27.3]
[1743213220474,8.63282652,129.27,129.24,27.32]
[1743213220861,7.7406,129.25,129.24,27.32]
[1743213223166,7.7412,129.24,129.23,0.05548279]
[1743213224174,16.37402652,129.24,129.23,0.05548279]
[1743213225771,7.744,129.2,129.18,8.63282652]
[1743213225968,7.744,129.2,129.19,27.32]
[1743213226175,8.63282652,129.23,129.19,27.32]
[1743213226679,7.7434,129.21,129.19,27.32]
[1743213226880,0.05618841,129.22,129.19,35.95282652]
[1743213227072,0.05618841,129.22,129.2,8.63282652]
[1743213227277,0.05618841,129.22,129.21,8.63282652]
[1743213232679,0.05618841,129.22,129.19,35.95282652]
[1743213233478,7.79868841,129.22,129.19,35.95282652]
[1743213234980,7.79868841,129.22,129.18,7.7445]
[1743213234981,7.7432,129.21,129.18,8.63282652]
[1743213235280,0.05618841,129.22,129.19,27.32]
[1743213235578,7.79888841,129.22,129.2,27.32]
[1743213237379,7.7431,129.21,129.19,27.32]
[1743213237881,8.68901493,129.22,129.19,27.32]
[1743213237882,0.05618841,129.22,129.19,27.32]
[1743213238070,7.79888841,129.22,129.19,27.32]
[1743213239283,0.05618841,129.22,129.19,35.95282652]
[1743213240882,8.68901493,129.22,129.19,27.32]
[1743213241091,8.68901493,129.22,129.17,263.77282652]
[1743213241286,7.7436,129.2,129.19,27.32]
[1743213241985,7.7448,129.18,129.17,282.46]
[1743213242189,7.7448,129.18,129.17,255.14]
[1743213242488,0.05255053,129.19,129.17,282.46]
[1743213242695,8.63282652,129.21,129.17,282.46]
[1743213242896,0.05723374,129.19,129.17,282.46]
[1743213243096,7.7448,129.18,129.17,282.46]
[1743213243398,7.7448,129.18,129.17,255.14]
[1743213244394,7.80173374,129.19,129.17,255.14]
[1743213245302,7.7448,129.18,129.17,255.14]
[1743213247604,7.7454,129.17,129.16,27.34]
[1743213248602,7.745,129.18,129.16,27.34]
[1743213248797,0.05723374,129.19,129.16,35.97282652]
[1743213249101,7.80143374,129.19,129.17,8.63282652]
[1743213249302,0.05723374,129.19,129.16,27.34]
[1743213250189,7.7453,129.18,129.16,27.34]
[1743213250396,0.05723374,129.19,129.16,27.34]
[1743213250705,7.80153374,129.19,129.16,43.71842652]
[1743213251499,7.7449,129.18,129.16,35.97282652]
[1743213251698,0.05723374,129.19,129.16,35.97282652]
[1743213252304,0.05723374,129.19,129.15,8.63282652]
[1743213252604,0.05723374,129.19,129.14,8.63282652]
[1743213252605,7.7464,129.16,129.14,8.63282652]
[1743213252802,7.7464,129.16,129.14,35.97282652]
[1743213253003,7.79734704,129.16,129.14,35.97282652]
[1743213253807,7.79734704,129.16,129.14,8.63282652]
[1743213254104,7.79734704,129.16,129.14,35.97282652]
[1743213255794,0.05094704,129.16,129.12,10.78742652]
[1743213255999,0.05094704,129.16,129.12,35.97282652]
[1743213256907,7.7473,129.14,129.12,35.97282652]
[1743213258711,7.7469,129.15,129.12,43.72122652]
[1743213259608,7.7476,129.14,129.11,264.01282652]
[1743213259809,7.7476,129.14,129.12,27.34]
[1743213260511,7.7469,129.15,129.11,264.01282652]
[1743213260713,7.7469,129.15,129.12,35.97282652]
[1743213261010,0.05094704,129.16,129.12,35.97282652]
[1743213261211,7.79724704,129.16,129.13,7.7478]
[1743213262711,7.79724704,129.16,129.13,35.0878]
[1743213264017,7.79724704,129.16,129.13,27.34]
[1743213264613,0.05094704,129.16,129.13,27.34]
[1743213264916,8.68377356,129.16,129.13,27.34]
[1743213265418,7.7472,129.14,129.13,27.34]
[1743213269317,7.7483,129.13,129.11,291.35282652]
[1743213269519,7.7483,129.13,129.11,282.72]
[1743213269718,0.04996869,129.13,129.11,282.72]
[1743213269921,7.7484,129.12,129.11,255.38]
[1743213270222,7.7484,129.12,129.11,282.72]
[1743213270924,7.79796869,129.13,129.11,282.72]
[1743213271521,0.04996869,129.13,129.11,291.35282652]
[1743213271821,0.04996869,129.13,129.12,8.63282652]
[1743213272729,0.04996869,129.13,129.12,16.38122652]
[1743213273525,0.04996869,129.13,129.11,299.10152652]
[1743213274425,0.04996869,129.13,129.12,7.7484]
[1743213276514,0.04996869,129.13,129.11,255.38]
[1743213276714,0.04996869,129.13,129.11,282.72]
[1743213277514,7.79806869,129.13,129.11,282.72]
[1743213277718,0.04996869,129.13,129.11,282.72]
[1743213278120,0.04996869,129.13,129.11,290.4689]
[1743213278423,0.04996869,129.13,129.11,282.72]
[1743213278827,0.04996869,129.13,129.12,7.7484]
[1743213282726,0.04996869,129.13,129.12,16.38122652]
[1743213283527,0.04996869,129.13,129.12,17.80384729]
[1743213283939,8.63282652,129.2,129.16,7.7457]
[1743213284123,8.63282652,129.2,129.16,35.0857]
[1743213284329,10.66140814,129.21,129.16,35.97282652]
[1743213284529,18.40490814,129.21,129.17,7.745]
[1743213284829,19.29423466,129.21,129.16,35.97282652]
[1743213285029,8.63282652,129.2,129.16,27.34]
[1743213285229,7.7452,129.18,129.17,0.05141288]
[1743213285935,8.68385875,129.2,129.17,0.05141288]
[1743213286133,8.63282652,129.19,129.17,0.05141288]
[1743213287335,7.7448,129.18,129.17,0.05141288]
[1743213290034,16.37762652,129.18,129.17,0.05141288]
[1743213290339,7.7468,129.15,129.14,27.34]
[1743213290541,8.63282652,129.17,129.13,27.34]
[1743213291447,7.7471,129.15,129.13,27.34]
[1743213291642,0.05231844,129.16,129.13,27.34]
[1743213292137,7.747,129.15,129.13,27.34]
[1743213293042,7.747,129.15,129.12,16.38102652]
[1743213293335,8.68514496,129.16,129.13,27.34]
[1743213293936,7.7471,129.15,129.13,27.34]
[1743213294342,0.05231844,129.16,129.11,264.01282652]
[1743213294541,7.79861844,129.16,129.12,35.97282652]
[1743213294942,7.79861844,129.16,129.13,7.7477]
[1743213296144,7.7467,129.15,129.12,43.72082652]
[1743213300543,0.05231844,129.16,129.12,35.97282652]
[1743213301335,7.79831844,129.16,129.13,7.7474]
[1743213302348,0.05231844,129.16,129.13,7.7474]
[1743213303352,0.05231844,129.16,129.14,7.7472]
[1743213303741,0.05231844,129.16,129.15,27.34]
[1743213305347,0.05231844,129.16,129.15,35.0866]
[1743213306150,0.05231844,129.16,129.15,27.34]
[1743213306751,0.05231844,129.16,129.15,35.0866]
[1743213306952,0.05231844,129.16,129.15,27.34]
[1743213308555,0.05231844,129.16,129.15,35.0866]
[1743213310958,0.05231844,129.16,129.15,27.34]
[1743213311960,0.05231844,129.16,129.15,35.97282652]
[1743213313460,0.05231844,129.16,129.15,43.71942652]
[1743213317766,12.66090814,129.23,129.19,8.63282652]
[1743213317964,10.66140814,129.23,129.2,35.95282652]
[1743213318264,10.66140814,129.23,129.21,8.63282652]
[1743213318665,68.89555903,129.24,129.21,8.63282652]
[1743213318869,0.04948406,129.23,129.21,8.68226309]
[1743213319061,0.04948406,129.23,129.21,0.04943657]
[1743213319461,7.79158406,129.23,129.21,0.04943657]
[1743213319966,0.04948406,129.23,129.21,0.04943657]
[1743213321067,0.04948406,129.23,129.21,16.42516309]
[1743213321260,0.04948406,129.23,129.21,8.68226309]
[1743213321565,0.04948406,129.23,129.21,16.42486309]
[1743213321763,0.04948406,129.23,129.21,8.68226309]
[1743213324369,0.04948406,129.23,129.21,16.42476309]
[1743213324764,0.04948406,129.23,129.22,8.63282652]
[1743213325770,0.04948406,129.23,129.22,16.37522652]
[1743213326871,0.04948406,129.23,129.22,8.63282652]
[1743213329379,0.04948406,129.23,129.22,16.37522652]
[1743213331179,0.04948406,129.23,129.22,8.63282652]
[1743213332284,0.04948406,129.23,129.22,16.37522652]
[1743213332579,0.04948406,129.23,129.22,8.63282652]
[1743213333282,0.04948406,129.23,129.22,16.37522652]
[1743213339886,0.04948406,129.23,129.21,8.68226309]
[1743213340082,0.04948406,129.23,129.21,0.04943657]
[1743213340585,0.04948406,129.23,129.21,8.68226309]
[1743213340890,0.04948406,129.23,129.22,8.63282652]
[1743213341892,0.04948406,129.23,129.22,16.37522652]
[1743213347102,2.158,129.3,129.22,8.63282652]
[1743213347399,2.158,129.3,129.21,0.04943657]
[1743213347400,2.158,129.3,129.26,8.63282652]
[1743213347586,2.158,129.3,129.27,27.3]
[1743213347791,9.8958,129.3,129.27,27.3]
[1743213348192,9.9543861,129.3,129.27,27.34907389]
[1743213351199,7.7382,129.29,129.27,27.34907389]
[1743213352599,9.9544861,129.3,129.27,35.08847389]
[1743213352802,7.7964861,129.3,129.27,43.72130041]
[1743213353101,7.7964861,129.3,129.28,8.63282652]
[1743213354900,7.7964861,129.3,129.27,43.72130041]
[1743213355804,0.0585861,129.3,129.27,43.72130041]
[1743213357100,7.7965861,129.3,129.27,43.72130041]
[1743213361305,7.7965861,129.3,129.27,35.98190041]
[1743213361608,0.0585861,129.3,129.27,35.98190041]
[1743213362007,7.7964861,129.3,129.27,35.98190041]
[1743213362209,7.7964861,129.3,129.27,43.72130041]
[1743213367305,0.0585861,129.3,129.27,43.72130041]
[1743213368315,7.7962861,129.3,129.27,43.72130041]
[1743213369211,7.7383,129.29,129.27,35.98190041]
[1743213369410,0.0585861,129.3,129.27,35.98190041]
[1743213369913,7.7966861,129.3,129.27,35.98190041]
[1743213372713,7.7966861,129.3,129.27,43.72130041]
[1743213373108,7.7382,129.29,129.27,35.98190041]
[1743213373302,0.0585861,129.3,129.27,35.98190041]
[1743213373918,7.7964861,129.3,129.27,43.72130041]
[1743213374611,7.7964861,129.3,129.27,35.98190041]
[1743213374811,7.7382,129.29,129.27,27.34907389]
[1743213378020,7.7963861,129.3,129.27,27.34907389]
[1743213380420,7.7963861,129.3,129.27,35.08847389]
[1743213380620,7.7963861,129.3,129.27,43.72130041]
[1743213381421,7.7963861,129.3,129.27,35.98190041]
[1743213383716,7.7383,129.29,129.27,35.98190041]
[1743213384122,0.0585861,129.3,129.27,35.98190041]
[1743213384317,7.7963861,129.3,129.27,35.98190041]
[1743213384920,7.7383,129.29,129.27,35.98190041]
[1743213385224,0.0585861,129.3,129.27,35.98190041]
[1743213385524,7.7386,129.29,129.27,35.98190041]
[1743213389025,7.7964861,129.3,129.27,35.98190041]
[1743213391326,7.7382,129.29,129.27,35.98190041]
[1743213393025,7.7965861,129.3,129.27,35.98190041]
[1743213393726,7.7383,129.29,129.27,35.98190041]
[1743213398129,7.7383,129.29,129.27,27.34907389]
[1743213400425,7.7388,129.28,129.27,27.34907389]
[1743213400631,7.7388,129.28,129.27,0.04907389]
[1743213401317,0.0585861,129.3,129.27,0.04907389]
[1743213402118,0.0585861,129.3,129.28,7.7388]
[1743213402531,0.0585861,129.3,129.29,27.28]
[1743213404128,0.0585861,129.3,129.29,35.0182]
[1743213404334,0.0585861,129.3,129.29,43.65102652]
[1743213407331,42.37684345,129.33,129.29,35.91282652]
[1743213407634,42.37684345,129.33,129.32,8.63282652]
[1743213407837,42.37684345,129.33,129.32,35.91282652]
[1743213408030,50.11204345,129.35,129.32,35.91282652]
[1743213408224,50.16950172,129.35,129.32,35.96935905]
[1743213410630,7.79265827,129.35,129.32,35.96935905]
[1743213417243,7.7354,129.34,129.32,35.96935905]
[1743213417543,0.05745827,129.35,129.32,35.96935905]
[1743213418043,7.79255827,129.35,129.32,35.96935905]
[1743213418938,7.79255827,129.35,129.32,43.70565905]
[1743213419840,7.79255827,129.35,129.32,35.96935905]
[1743213424041,7.7354,129.34,129.32,35.96935905]
[1743213427045,0.05745827,129.35,129.33,8.63282652]
[1743213427247,0.05745827,129.35,129.34,8.63282652]
[1743213429752,0.05745827,129.35,129.34,16.36802652]
[1743213432355,7.7317,129.4,129.34,8.63282652]
[1743213432548,7.7317,129.4,129.37,8.63282652]
[1743213432847,7.7317,129.4,129.38,27.26]
[1743213433354,7.7322,129.39,129.38,27.30884879]
[1743213435052,0.04962205,129.4,129.38,35.94167531]
[1743213435355,0.04962205,129.4,129.39,8.63282652]
[1743213435552,0.04962205,129.4,129.39,16.36502652]
[1743213436255,406.37684345,129.45,129.39,16.36502652]
[1743213436256,406.37684345,129.45,129.41,7.731]
[1743213436448,406.37684345,129.45,129.43,8.63282652]
[1743213437256,50.10564345,129.45,129.44,8.63282652]
[1743213437462,50.15923409,129.45,129.44,8.63282652]
[1743213438748,7.78239064,129.45,129.44,8.63282652]
[1743213444462,7.7292,129.44,129.43,0.05623846]
[1743213444963,7.7292,129.44,129.43,8.68906498]
[1743213445156,7.78249064,129.45,129.43,8.68906498]
[1743213447563,7.78249064,129.45,129.44,27.24]
[1743213461865,0.05359064,129.45,129.44,35.87282652]
[1743213462375,19.29423466,129.52,129.44,35.87282652]
[1743213462567,19.29423466,129.52,129.48,8.63282652]
[1743213462765,10.66140814,129.52,129.48,35.87282652]
[1743213462967,7.7255,129.51,129.49,8.63282652]
[1743213463663,7.77609306,129.51,129.49,8.68296971]
[1743213467174,0.05059306,129.51,129.5,8.63282652]
[1743213468375,0.05059306,129.51,129.49,8.68296971]
[1743213468677,7.7257,129.5,129.49,8.68296971]
[1743213468975,7.7257,129.5,129.49,0.05014319]
[1743213473170,7.77589306,129.51,129.49,0.05014319]
[1743213473371,0.05059306,129.51,129.49,0.05014319]
[1743213474779,7.7257,129.5,129.49,0.05014319]
[1743213487388,0.05059306,129.51,129.49,8.68296971]
[1743213488188,0.05059306,129.51,129.5,8.63282652]
[1743213488791,0.05059306,129.51,129.5,16.35852652]
[1743213489291,0.05059306,129.51,129.5,8.63282652]
[1743213491488,7.77569306,129.51,129.5,8.63282652]
[1743213491683,0.05059306,129.51,129.49,8.68296971]
[1743213492291,7.7257,129.5,129.49,8.68296971]
[1743213493294,7.7257,129.5,129.49,0.05014319]
[1743213497900,0.05059306,129.51,129.49,16.40926971]
[1743213498193,0.05059306,129.51,129.5,8.63282652]
[1743213499395,0.05059306,129.51,129.49,0.05014319]
[1743213500798,7.7257,129.5,129.49,0.05014319]
[1743213501098,0.05059306,129.51,129.49,0.05014319]
[1743213501299,7.77609306,129.51,129.49,0.05014319]
[1743213503802,16.35852652,129.5,129.49,0.05014319]
[1743213503996,8.63282652,129.49,129.47,27.22]
[1743213505097,8.63282652,129.49,129.47,27.27123829]
[1743213505704,7.7269,129.48,129.47,0.05123829]
[1743213509403,7.7292,129.45,129.43,8.63282652]
[1743213509599,7.7292,129.45,129.44,27.22]
[1743213511508,7.78433606,129.46,129.44,27.22]
[1743213512309,7.7286,129.45,129.44,27.22]
[1743213513212,7.78433606,129.46,129.44,27.22]
[1743213513410,0.05603606,129.46,129.44,27.22]
[1743213513804,7.7286,129.45,129.44,27.22]
[1743213519811,7.7292,129.44,129.43,27.27745943]
[1743213520813,7.7292,129.44,129.43,0.05745943]
[1743213525416,7.7289,129.45,129.43,0.05745943]
[1743213529419,7.7292,129.44,129.43,0.05745943]
[1743213532418,7.729,129.45,129.43,0.05745943]
[1743213533118,7.7292,129.44,129.43,0.05745943]
[1743213544827,16.36202652,129.44,129.43,0.05745943]
[1743213545023,7.7311,129.41,129.4,27.22]
[1743213545819,7.7311,129.41,129.39,8.63282652]
[1743213546018,7.7311,129.41,129.4,27.22]
[1743213546019,7.78963986,129.41,129.4,27.22]
[1743213547414,7.78963986,129.41,129.39,0.05515044]
[1743213547415,7.7316,129.4,129.39,0.05515044]
[1743213547724,7.7316,129.4,129.39,27.27515044]
[1743213553726,7.7316,129.4,129.39,0.05515044]
[1743213565039,0.05853986,129.41,129.39,16.41997696]
[1743213565340,0.05853986,129.41,129.4,8.63282652]
[1743213566943,0.05853986,129.41,129.4,16.36442652]
[1743213574444,9.8,129.45,129.42,7.7304]
[1743213574645,9.8,129.45,129.43,27.22]
[1743213575243,364.0,129.46,129.43,35.85282652]
[1743213575436,10.72862652,129.48,129.44,8.63282652]
[1743213575636,0.05540246,129.46,129.45,8.63282652]
[1743213576541,0.05540246,129.46,129.45,16.36142652]
[1743213579848,0.05540246,129.46,129.45,8.63282652]
[1743213583553,0.05540246,129.46,129.45,16.36142652]
[1743213587956,366.1519,129.52,129.48,8.63282652]
[1743213588155,2.1519,129.52,129.49,27.2]
[1743213588352,7.7251,129.51,129.49,27.2]
[1743213588857,2.1519,129.52,129.49,27.2]
[1743213589066,0.05104444,129.51,129.49,27.252382]
[1743213589560,7.7257,129.5,129.49,27.252382]
[1743213597267,0.05104444,129.51,129.44,8.63282652]
[1743213597474,8.63282652,129.46,129.44,27.2]
[1743213598470,8.69195827,129.46,129.44,27.25435195]
[1743213598773,7.7286,129.45,129.44,27.25435195]
[1743213599381,7.7286,129.45,129.44,0.05435195]
[1743213600785,0.05913175,129.46,129.44,0.05435195]
[1743213601281,0.05913175,129.46,129.44,8.68717847]
[1743213601484,0.05913175,129.46,129.45,8.63282652]
[1743213602673,0.05913175,129.46,129.45,16.36142652]
[1743213602885,10.66140814,129.51,129.45,8.63282652]
[1743213603179,10.66140814,129.51,129.5,8.63282652]
[1743213603383,10.66140814,129.51,129.5,43.55852652]
[1743213603890,125.85682687,129.53,129.51,7.7248]
[1743213604080,0.00203264,129.52,129.51,7.7248]
[1743213604278,0.00203264,129.52,129.51,16.35762652]
[1743213604474,0.00203264,129.52,129.51,8.63282652]
[1743213604677,0.00203264,129.52,129.5,27.2]
[1743213604884,7.7251,129.51,129.5,27.2]
[1743213605782,7.72663264,129.52,129.5,27.2]
[1743213605979,0.00203264,129.52,129.5,35.83282652]
[1743213607083,0.00203264,129.52,129.5,43.55802652]
[1743213607284,0.00203264,129.52,129.51,8.63282652]
[1743213608792,0.00203264,129.52,129.51,16.35792652]
[1743213609385,0.00203264,129.52,129.51,8.63282652]
[1743213612998,0.00203264,129.52,129.51,16.35792652]
[1743213613897,0.00203264,129.52,129.51,8.63282652]
[1743213615098,0.00203264,129.52,129.51,16.35792652]
[1743213616305,0.00203264,129.52,129.51,8.63282652]
[1743213617508,0.00203264,129.52,129.51,16.35792652]